Workbook

Sheet OUTPUT FSOD
A2: IRR 2026 Sch A-2Bc FSOD F.Z28.XLSM
A3: 9/22/2025
A4: CENTRAL VALLEY PROJECT
A5: SCHEDULE OF FY 2026 ALLOCATED IRRIGATION FOLSOM SAFETY OF DAMS MODIFICATION PROJECT COSTS
A6: BY COMPONENT AND CONTRACTOR
A8: Facility | B8: A) Contractor | C8: B) 2025-2073 Historical & Projected Deliveries <Sch A-13 FSOD> | D8: C) 50-Year FSOD Rate | E8: D) Total Allocated FSOD Cost (B*C)
A9: Black Butte D & R | B9: 4-E WD | C9: 140 | D9: 0.3527855439 | E9: 49.38997615
A10: Black Butte D & R | B10: Stony Creek WD | C10: 6202 | D10: 0.3527855439 | E10: 2187.975943
A11: Total | B11: Total Black Butte D & R | C11: 6342 | D11: - | E11: 2237.36592
A12: Buchanan Unit | B12: Chowchilla WD - BU | C12: 1200000 | D12: 0.3527855439 | E12: 423342.6527
A13: Total | B13: Total Buchanan Unit | C13: 1200000 | D13: - | E13: 423342.6527
A14: Clear Creek Unit | B14: Clear Creek CSD | C14: 43209 | D14: 0.3527855439 | E14: 15243.51057
A15: Total | B15: Total Clear Creek Unit | C15: 43209 | D15: - | E15: 15243.51057
A16: Colusa Basin Drain | B16: Colusa Drain MWC | C16: 490000 | D16: 0.3527855439 | E16: 172864.9165
A17: Total | B17: Total Colusa Basin Drain | C17: 490000 | D17: - | E17: 172864.9165
A18: Corning Canal | B18: Corning WD | C18: 258879 | D18: 0.3527855439 | E18: 91328.76883
A19: Corning Canal | B19: Proberta WD | C19: 7008 | D19: 0.3527855439 | E19: 2472.321092
A20: Corning Canal | B20: Thomes Creek WD | C20: 2555 | D20: 0.3527855439 | E20: 901.3670648
A21: Total | B21: Total Corning Canal | C21: 268442 | D21: - | E21: 94702.45699
A22: Cow Creek Unit | B22: Bella Vista WD | C22: 104548 | D22: 0.3527855439 | E22: 36883.02305
A23: Total | B23: Total Cow Creek Unit | C23: 104548 | D23: - | E23: 36883.02305
A24: Cross Valley Canal | B24: County of Fresno | C24: 14700 | D24: 0.3527855439 | E24: 5185.947496
A25: Cross Valley Canal | B25: County of Tulare | C25: 22078 | D25: 0.3527855439 | E25: 7788.799239
A26: Cross Valley Canal | B26: Hills Valley ID | C26: 11711 | D26: 0.3527855439 | E26: 4131.471505
A27: Cross Valley Canal | B27: Kern-Tulare WD | C27: 276318 | D27: 0.3527855439 | E27: 97480.99593
A28: Cross Valley Canal | B28: Lower Tule River ID - CVC | C28: 265914 | D28: 0.3527855439 | E28: 93810.61513
A29: Cross Valley Canal | B29: Pixley ID | C29: 266234 | D29: 0.3527855439 | E29: 93923.5065
A30: Cross Valley Canal | B30: Tri-Valley WD | C30: 3997 | D30: 0.3527855439 | E30: 1410.083819
A31: Total | B31: Total Cross Valley Canal | C31: 860952 | D31: - | E31: 303731.4196
A32: Delta-Mendota Canal | B32: Banta-Carbona ID | C32: 350648 | D32: 0.3527855439 | E32: 123703.5454
A33: Delta-Mendota Canal | B33: Byron Bethany ID | C33: 251146 | D33: 0.3527855439 | E33: 88600.67822
A34: Delta-Mendota Canal | B34: Del Puerto WD | C34: 2554938 | D34: 0.3527855439 | E34: 901345.1921
A35: Delta-Mendota Canal | B35: Eagle Field WD | C35: 88342 | D35: 0.3527855439 | E35: 31165.78052
A36: Delta-Mendota Canal | B36: Mercy Springs WD | C36: 51179 | D36: 0.3527855439 | E36: 18055.21135
A37: Delta-Mendota Canal | B37: Oro Loma WD | C37: 1479 | D37: 0.3527855439 | E37: 521.7698195
A38: Delta-Mendota Canal | B38: Pacheco WD - DMC | C38: 7000 | D38: 0.3527855439 | E38: 2469.498808
A39: Delta-Mendota Canal | B39: Panoche WD - DMC | C39: 366146 | D39: 0.3527855439 | E39: 129171.0158
A40: Delta-Mendota Canal | B40: Patterson WD | C40: 457649 | D40: 0.3527855439 | E40: 161451.9514
A41: Delta-Mendota Canal | B41: San Luis WD - DMC | C41: 380583 | D41: 0.3527855439 | E41: 134264.1807
A42: Delta-Mendota Canal | B42: Santa Nella County WD - DMC | C42: 6068 | D42: 0.3527855439 | E42: 2140.702681
A43: Delta-Mendota Canal | B43: West Side ID | C43: 25691 | D43: 0.3527855439 | E43: 9063.413409
A44: Delta-Mendota Canal | B44: West Stanislaus ID | C44: 806446 | D44: 0.3527855439 | E44: 284502.4908
A45: Total | B45: Total Delta-Mendota Canal | C45: 5347315 | D45: - | E45: 1886455.431
A46: Delta-Mendota Pool | B46: Coelho Trust | C46: 33572 | D46: 0.3527855439 | E46: 11843.71628
A47: Delta-Mendota Pool | B47: Fresno Slough WD | C47: 48279 | D47: 0.3527855439 | E47: 17032.13328
A48: Delta-Mendota Pool | B48: James ID | C48: 729763 | D48: 0.3527855439 | E48: 257449.8369
A49: Delta-Mendota Pool | B49: Laguna WD | C49: 10680 | D49: 0.3527855439 | E49: 3767.749609
A50: Delta-Mendota Pool | B50: Recl Dist #1606 | C50: 2261 | D50: 0.3527855439 | E50: 797.6481148
A51: Delta-Mendota Pool | B51: Tranquillity ID | C51: 203867 | D51: 0.3527855439 | E51: 71921.33049
A52: Delta-Mendota Pool | B52: Tranquillity PUD | C52: 490 | D52: 0.3527855439 | E52: 172.8649165
A53: Delta-Mendota Pool | B53: Westlands WD - DMP | C53: 175000 | D53: 0.3527855439 | E53: 61737.47019
A54: Total | B54: Total Delta-Mendota Pool | C54: 1203912 | D54: - | E54: 424722.7498
A55: Friant-Kern Canal - Class 1 | B55: Arvin-Edison WSD | C55: 1487863 | D55: 0.3527855439 | E55: 524896.5578
A56: Friant-Kern Canal - Class 1 | B56: Delano-Earlimart ID | C56: 4152031 | D56: 0.3527855439 | E56: 1464776.515
A57: Friant-Kern Canal - Class 1 | B57: Exeter ID | C57: 428989 | D57: 0.3527855439 | E57: 151341.1177
A58: Friant-Kern Canal - Class 1 | B58: Garfield WD | C58: 129999 | D58: 0.3527855439 | E58: 45861.76793
A59: Friant-Kern Canal - Class 1 | B59: Hills Valley ID | C59: 53711 | D59: 0.3527855439 | E59: 18948.46435
A60: Friant-Kern Canal - Class 1 | B60: International WD | C60: 38836 | D60: 0.3527855439 | E60: 13700.77938
A61: Friant-Kern Canal - Class 1 | B61: Ivanhoe ID | C61: 256740 | D61: 0.3527855439 | E61: 90574.16055
A62: Friant-Kern Canal - Class 1 | B62: Kaweah Delta WCD | C62: 50242 | D62: 0.3527855439 | E62: 17724.6513
A63: Friant-Kern Canal - Class 1 | B63: Lewis Creek WD | C63: 40807 | D63: 0.3527855439 | E63: 14396.11969
A64: Friant-Kern Canal - Class 1 | B64: Lindmore ID | C64: 1291856 | D64: 0.3527855439 | E64: 455748.1216
A65: Friant-Kern Canal - Class 1 | B65: Lindsay-Strathmore ID | C65: 1092967 | D65: 0.3527855439 | E65: 385582.9576
A66: Friant-Kern Canal - Class 1 | B66: Lower Tule River ID - FKC | C66: 2549136 | D66: 0.3527855439 | E66: 899298.3303
A67: Friant-Kern Canal - Class 1 | B67: Orange Cove ID | C67: 1541131 | D67: 0.3527855439 | E67: 543688.7381
A68: Friant-Kern Canal - Class 1 | B68: Porterville ID | C68: 541541 | D68: 0.3527855439 | E68: 191047.8362
A69: Friant-Kern Canal - Class 1 | B69: Saucelito ID | C69: 784505 | D69: 0.3527855439 | E69: 276762.0231
A70: Friant-Kern Canal - Class 1 | B70: Shafter-Wasco ID | C70: 2041605.07 | D70: 0.3527855439 | E70: 720248.7551
A71: Friant-Kern Canal - Class 1 | B71: So San Joaquin MUD | C71: 3787043.93 | D71: 0.3527855439 | E71: 1336014.353
A72: Friant-Kern Canal - Class 1 | B72: Stone Corral ID | C72: 379751.93 | D72: 0.3527855439 | E72: 133970.9912
A73: Friant-Kern Canal - Class 1 | B73: Tea Pot Dome WD | C73: 280101.07 | D73: 0.3527855439 | E73: 98815.60834
A74: Friant-Kern Canal - Class 1 | B74: Terra Bella ID | C74: 1052906 | D74: 0.3527855439 | E74: 371450.0159
A75: Friant-Kern Canal - Class 1 | B75: Tri-Valley ID | C75: 13492 | D75: 0.3527855439 | E75: 4759.782559
A76: Friant-Kern Canal - Class 1 | B76: Tulare ID | C76: 1139747 | D76: 0.3527855439 | E76: 402086.2653
A77: Total | B77: Total Friant-Kern Canal - Class 1 | C77: 23135001 | D77: - | E77: 8161693.912
A78: Hidden Unit | B78: Madera ID - HU | C78: 1200000 | D78: 0.3527855439 | E78: 423342.6527
A79: Total | B79: Total Hidden Unit | C79: 1200000 | D79: - | E79: 423342.6527
A80: Madera Canal - Class 1 | B80: Chowchilla WD - MC | C80: 2372775 | D80: 0.3527855439 | E80: 837080.719
A81: Madera Canal - Class 1 | B81: Madera ID - MC | C81: 3679951 | D81: 0.3527855439 | E81: 1298233.515
A82: Total | B82: Total Madera Canal - Class 1 | C82: 6052726 | D82: - | E82: 2135314.234
A83: New Melones D & R | B83: Central San Joaquin WCD | C83: 1111971 | D83: 0.3527855439 | E83: 392287.2941
A84: New Melones D & R | B84: Stockton-East WD | C84: 351100 | D84: 0.3527855439 | E84: 123863.0045
A85: Total | B85: Total New Melones D & R | C85: 1463071 | D85: - | E85: 516150.2986
A86: Sacramento River - Shasta | B86: Anderson-Cottonwood ID | C86: 199348 | D86: 0.3527855439 | E86: 70327.09261
A87: Sacramento River - Shasta | B87: Daniell, H & B | C87: 49 | D87: 0.3527855439 | E87: 17.28649165
A88: Sacramento River - Shasta | B88: Driscoll Strawberry | C88: 3430 | D88: 0.3527855439 | E88: 1210.054416
A89: Sacramento River - Shasta | B89: Gjermann, H | C89: 98 | D89: 0.3527855439 | E89: 34.57298331
A90: Sacramento River - Shasta | B90: Leviathan Inc | C90: 11501 | D90: 0.3527855439 | E90: 4057.386541
A91: Sacramento River - Shasta | B91: Redding Rancheria | C91: 945 | D91: 0.3527855439 | E91: 333.382339
A92: Total | B92: Total Sacramento River - Shasta | C92: 215371 | D92: - | E92: 75979.77538
A93: Sacramento River - Willows | B93: Anderson, A/et al | C93: 315 | D93: 0.3527855439 | E93: 111.1274463
A94: Sacramento River - Willows | B94: Anderson, R & J | C94: 616 | D94: 0.3527855439 | E94: 217.3158951
A95: Sacramento River - Willows | B95: Andreotti, A/et al | C95: 57452 | D95: 0.3527855439 | E95: 20268.23507
A96: Sacramento River - Willows | B96: B & D Family Partnership | C96: 822 | D96: 0.3527855439 | E96: 289.9897171
A97: Sacramento River - Willows | B97: Baber, J/et al | C97: 99441 | D97: 0.3527855439 | E97: 35081.34727
A98: Sacramento River - Willows | B98: Burdick, Claude (formerly Young, R) | C98: 162 | D98: 0.3527855439 | E98: 57.15125812
A99: Sacramento River - Willows | B99: Butler, Diane | C99: 10190 | D99: 0.3527855439 | E99: 3594.884693
A100: Sacramento River - Willows | B100: Butte Creek Farms Inc | C100: 17240 | D100: 0.3527855439 | E100: 6082.022777
A101: Sacramento River - Willows | B101: Byrd, A & Osborne, J. | C101: 6604 | D101: 0.3527855439 | E101: 2329.795732
A102: Sacramento River - Willows | B102: Cachil Dehe Band of Wintun | C102: 2900 | D102: 0.3527855439 | E102: 1023.078077
A103: Sacramento River - Willows | B103: Carter MWC | C103: 24294 | D103: 0.3527855439 | E103: 8570.572004
A104: Sacramento River - Willows | B104: Charter, Mary | C104: 3227 | D104: 0.3527855439 | E104: 1138.43895
A105: Sacramento River - Willows | B105: Churkin, M Jr & C | C105: 1638 | D105: 0.3527855439 | E105: 577.862721
A106: Sacramento River - Willows | B106: Conaway Consv Grp | C106: 33520 | D106: 0.3527855439 | E106: 11825.37143
A107: Sacramento River - Willows | B107: County of Sacramento | C107: 1610 | D107: 0.3527855439 | E107: 567.9847257
A108: Sacramento River - Willows | B108: Cummings, W | C108: 3544 | D108: 0.3527855439 | E108: 1250.271968
A109: Sacramento River - Willows | B109: Driver, Gary/et al | C109: 154 | D109: 0.3527855439 | E109: 54.32897377
A110: Sacramento River - Willows | B110: Driver, J & C Trustees | C110: 1407 | D110: 0.3527855439 | E110: 496.3692603
A111: Sacramento River - Willows | B111: Driver, Gregory | C111: 98 | D111: 0.3527855439 | E111: 34.57298331
A112: Sacramento River - Willows | B112: Driver, W/et al | C112: 809 | D112: 0.3527855439 | E112: 285.403505
A113: Sacramento River - Willows | B113: Dyer, J & Wing, J | C113: 8605 | D113: 0.3527855439 | E113: 3035.719606
A114: Sacramento River - Willows | B114: Eastside MWC | C114: 21234 | D114: 0.3527855439 | E114: 7491.04824
A115: Sacramento River - Willows | B115: Ehrke, A & B | C115: 4501 | D115: 0.3527855439 | E115: 1587.887733
A116: Sacramento River - Willows | B116: Empire Group, LLC | C116: 112 | D116: 0.3527855439 | E116: 39.51198092
A117: Sacramento River - Willows | B117: Feather WD | C117: 138555 | D117: 0.3527855439 | E117: 48880.20104
A118: Sacramento River - Willows | B118: Fedora, S/Taylor, W | C118: 140 | D118: 0.3527855439 | E118: 49.38997615
A119: Sacramento River - Willows | B119: Kaelin, Cameron C. | C119: 1359 | D119: 0.3527855439 | E119: 479.4355542
A120: Sacramento River - Willows | B120: Gillaspy, W | C120: 2876 | D120: 0.3527855439 | E120: 1014.611224
A121: Sacramento River - Willows | B121: Giusti, R & S | C121: 14051 | D121: 0.3527855439 | E121: 4956.989678
A122: Sacramento River - Willows | B122: Glenn-Colusa ID | C122: 3222665 | D122: 0.3527855439 | E122: 1136909.625
A123: Sacramento River - Willows | B123: Green Valley Corp | C123: 6794 | D123: 0.3527855439 | E123: 2396.824985
A124: Sacramento River - Willows | B124: Griffin, J/Prater | C124: 35324 | D124: 0.3527855439 | E124: 12461.79655
A125: Sacramento River - Willows | B125: Hale, J/Marks, A | C125: 210 | D125: 0.3527855439 | E125: 74.08496423
A126: Sacramento River - Willows | B126: Hatfield, R & B | C126: 618 | D126: 0.3527855439 | E126: 218.0214662
A127: Sacramento River - Willows | B127: Heidrick & McGinnis Properties | C127: 1400 | D127: 0.3527855439 | E127: 493.8997615
A128: Sacramento River - Willows | B128: Henle Family Limited Partnership | C128: 0 | D128: 0.3527855439 | E128: 0
A129: Sacramento River - Willows | B129: Howald Farms Inc | C129: 48889 | D129: 0.3527855439 | E129: 17247.33246
A130: Sacramento River - Willows | B130: Jaeger, W & P | C130: 3395 | D130: 0.3527855439 | E130: 1197.706922
A131: Sacramento River - Willows | B131: Jansen, P & S | C131: 1650 | D131: 0.3527855439 | E131: 582.0961475
A132: Sacramento River - Willows | B132: Kary, C | C132: 4200 | D132: 0.3527855439 | E132: 1481.699285
A133: Sacramento River - Willows | B133: King, Ben | C133: 49 | D133: 0.3527855439 | E133: 17.28649165
A134: Sacramento River - Willows | B134: King, L | C134: 91 | D134: 0.3527855439 | E134: 32.1034845
A135: Sacramento River - Willows | B135: KLSY, LLC | C135: 3240 | D135: 0.3527855439 | E135: 1143.025162
A136: Sacramento River - Willows | B136: Knights Landing Investors | C136: 24136 | D136: 0.3527855439 | E136: 8514.831888
A137: Sacramento River - Willows | B137: L C Dennis Company | C137: 13103 | D137: 0.3527855439 | E137: 4622.548982
A138: Sacramento River - Willows | B138: Lauppe Alan, Johnson J, & Lauppe W | C138: 154 | D138: 0.3527855439 | E138: 54.32897377
A139: Sacramento River - Willows | B139: Lauppe, Alan | C139: 849.3333333 | D139: 0.3527855439 | E139: 299.632522
A140: Sacramento River - Willows | B140: Lauppe, B ET UX | C140: 3650 | D140: 0.3527855439 | E140: 1287.667235
A141: Sacramento River - Willows | B141: Lauppe, B & K | C141: 3950 | D141: 0.3527855439 | E141: 1393.502899
A142: Sacramento River - Willows | B142: Leonard, James | C142: 210 | D142: 0.3527855439 | E142: 74.08496423
A143: Sacramento River - Willows | B143: Lockett, W & J | C143: 1624 | D143: 0.3527855439 | E143: 572.9237234
A144: Sacramento River - Willows | B144: Lomo CS & Micheli, J | C144: 19205 | D144: 0.3527855439 | E144: 6775.246371
A145: Sacramento River - Willows | B145: Lonon, M | C145: 18261 | D145: 0.3527855439 | E145: 6442.216818
A146: Sacramento River - Willows | B146: M C M Properties | C146: 23372 | D146: 0.3527855439 | E146: 8245.303733
A147: Sacramento River - Willows | B147: Maxwell ID | C147: 177652 | D147: 0.3527855439 | E147: 62673.05745
A148: Sacramento River - Willows | B148: McClatchy Partners | C148: 1226 | D148: 0.3527855439 | E148: 432.5150769
A149: Sacramento River - Willows | B149: Meridian Farms WC | C149: 376237 | D149: 0.3527855439 | E149: 132730.9747
A150: Sacramento River - Willows | B150: Micke, D & N | C150: 133 | D150: 0.3527855439 | E150: 46.92047734
A151: Sacramento River - Willows | B151: Morehead, J/et ux | C151: 980 | D151: 0.3527855439 | E151: 345.7298331
A152: Sacramento River - Willows | B152: Munson, J & D | C152: 56 | D152: 0.3527855439 | E152: 19.75599046
A153: Sacramento River - Willows | B153: Natomas Basin Conserv | C153: 3473 | D153: 0.3527855439 | E153: 1225.224194
A154: Sacramento River - Willows | B154: Natomas Central MWC | C154: 768878 | D154: 0.3527855439 | E154: 271249.0434
A155: Sacramento River - Willows | B155: Nelson, Henry E | C155: 2884 | D155: 0.3527855439 | E155: 1017.433509
A156: Sacramento River - Willows | B156: O'Brien, J & F | C156: 8828 | D156: 0.3527855439 | E156: 3114.390782
A157: Sacramento River - Willows | B157: Odysseus Farms | C157: 14046 | D157: 0.3527855439 | E157: 4955.22575
A158: Sacramento River - Willows | B158: Oji Brothers Farm Inc | C158: 57580 | D158: 0.3527855439 | E158: 20313.39162
A159: Sacramento River - Willows | B159: Pacific Realty Inc | C159: 36600 | D159: 0.3527855439 | E159: 12911.95091
A160: Sacramento River - Willows | B160: Pelger MWC | C160: 68612 | D160: 0.3527855439 | E160: 24205.32174
A161: Sacramento River - Willows | B161: Pelger Road 1700, LLC | C161: 67059 | D161: 0.3527855439 | E161: 23657.44579
A162: Sacramento River - Willows | B162: Penner, R & L | C162: 147 | D162: 0.3527855439 | E162: 51.85947496
A163: Sacramento River - Willows | B163: Pleasant Grv-Vrna MWC | C163: 66426 | D163: 0.3527855439 | E163: 23434.13254
A164: Sacramento River - Willows | B164: Princeton-Codora-Glenn ID | C164: 548149 | D164: 0.3527855439 | E164: 193379.0431
A165: Sacramento River - Willows | B165: Provident ID | C165: 228042 | D165: 0.3527855439 | E165: 80449.92101
A166: Sacramento River - Willows | B166: Quad-H-Ranches Inc | C166: 11034 | D166: 0.3527855439 | E166: 3892.635692
A167: Sacramento River - Willows | B167: RD Heer Capital (formerly Oji, M) | C167: 40977 | D167: 0.3527855439 | E167: 14456.09323
A168: Sacramento River - Willows | B168: Recl Dist # 108 | C168: 1064212 | D168: 0.3527855439 | E168: 375438.6093
A169: Sacramento River - Willows | B169: Recl Dist #1000 | C169: 861 | D169: 0.3527855439 | E169: 303.7483533
A170: Sacramento River - Willows | B170: Recl Dist #1004 | C170: 445372 | D170: 0.3527855439 | E170: 157120.8033
A171: Sacramento River - Willows | B171: Reische, E | C171: 392 | D171: 0.3527855439 | E171: 138.2919332
A172: Sacramento River - Willows | B172: Reische, L | C172: 1967 | D172: 0.3527855439 | E172: 693.9291649
A173: Sacramento River - Willows | B173: Richter, H Jr/et al | C173: 31308 | D173: 0.3527855439 | E173: 11045.00981
A174: Sacramento River - Willows | B174: River Garden Farms Co | C174: 14662 | D174: 0.3527855439 | E174: 5172.541645
A175: Sacramento River - Willows | B175: Roberts Ditch Irr Co | C175: 12375 | D175: 0.3527855439 | E175: 4365.721106
A176: Sacramento River - Willows | B176: Rubio, E & E | C176: 129 | D176: 0.3527855439 | E176: 45.50933517
A177: Sacramento River - Willows | B177: Saeed, F | C177: 22895 | D177: 0.3527855439 | E177: 8077.025028
A178: Sacramento River - Willows | B178: Seaver, C | C178: 1890 | D178: 0.3527855439 | E178: 666.764678
A179: Sacramento River - Willows | B179: Sutter MWC | C179: 1761971 | D179: 0.3527855439 | E179: 621597.8976
A180: Sacramento River - Willows | B180: Swenson Farms | C180: 12834 | D180: 0.3527855439 | E180: 4527.649671
A181: Sacramento River - Willows | B181: Sycamore Mutual Water Company | C181: 368844 | D181: 0.3527855439 | E181: 130122.8312
A182: Sacramento River - Willows | B182: T & P Farms | C182: 6418 | D182: 0.3527855439 | E182: 2264.177621
A183: Sacramento River - Willows | B183: Tarke, S | C183: 33374 | D183: 0.3527855439 | E183: 11773.86474
A184: Sacramento River - Willows | B184: Tisdale Irr & Drain Co | C184: 72161 | D184: 0.3527855439 | E184: 25457.35764
A185: Sacramento River - Willows | B185: Van Ruiten Brothers 1415L | C185: 5705 | D185: 0.3527855439 | E185: 2012.641528
A186: Sacramento River - Willows | B186: Van Ruiten Brothers 520XL | C186: 3677 | D186: 0.3527855439 | E186: 1297.192445
A187: Sacramento River - Willows | B187: Van Ruiten Brothers 0880S | C187: 19060 | D187: 0.3527855439 | E187: 6724.092467
A188: Sacramento River - Willows | B188: Van Ruiten Brothers 0880XR | C188: 8624 | D188: 0.3527855439 | E188: 3042.422531
A189: Sacramento River - Willows | B189: Wallace, J & J | C189: 420 | D189: 0.3527855439 | E189: 148.1699285
A190: Sacramento River - Willows | B190: Wallace, K Trust | C190: 6809 | D190: 0.3527855439 | E190: 2402.116769
A191: Sacramento River - Willows | B191: Western Almonds LLC | C191: 9548 | D191: 0.3527855439 | E191: 3368.396373
A192: Sacramento River - Willows | B192: Wisler, J | C192: 189 | D192: 0.3527855439 | E192: 66.6764678
A193: Sacramento River - Willows | B193: Yocha Dehe Wintun Nation (Heidrick, M) | C193: 2235 | D193: 0.3527855439 | E193: 788.4756907
A194: Total | B194: Total Sacramento River - Willows | C194: 10281466.33 | D194: - | E194: 3627152.693
A195: San Luis Canal - Fresno | B195: Westlands WD - SLC | C195: 24878384 | D195: 0.3527855439 | E195: 8776734.232
A196: San Luis Canal - Fresno | B196: Westlands DD#2 | C196: 77334 | D196: 0.3527855439 | E196: 27282.31725
A197: Total | B197: Total San Luis Canal - Fresno | C197: 24955718 | D197: - | E197: 8804016.549
A198: San Luis Canal - Tracy | B198: Pacheco WD - SLC | C198: 194408 | D198: 0.3527855439 | E198: 68584.33203
A199: San Luis Canal - Tracy | B199: Panoche WD - SLC | C199: 1133406 | D199: 0.3527855439 | E199: 399849.2522
A200: San Luis Canal - Tracy | B200: San Luis WD - SLC | C200: 1442807 | D200: 0.3527855439 | E200: 509001.4523
A201: San Luis Canal - Tracy | B201: Santa Nella County WD - SLC | C201: 22365 | D201: 0.3527855439 | E201: 7890.04869
A202: Total | B202: Total San Luis Canal - Tracy | C202: 2792986 | D202: - | E202: 985325.0852
... 23 more rows

Sheet Footnotes
A1: IRR 2026 Sch A-2Bc FSOD F.Z28.XLSM
A2: 9/22/2025
A3: CENTRAL VALLEY PROJECT
A4: SCHEDULE OF FY 2026 ALLOCATED IRRIGATION FOLSOM SAFETY OF DAMS MODIFICATION PROJECT COSTS
A5: BY COMPONENT AND CONTRACTOR
A8: Footnotes:
A9: 1/ Allocation of FSOD Modification Project Costs and 50-year Rate:
A11: Category | B11: Storage San Felipe Unit | C11: All Other Storage Contractors | D11: Total
A12: Historical and Projected 2025-2073 IRR Deliveries (Sch A-13 FSOD) | B12: 1330340 | C12: 84981134.33 | D12: 86311474.33
A13: Ratios | B13: 0.015413 | C13: 0.984587 | D13: 1
A14: Allocated FSOD Storage Costs | B14: 469317.11 | C14: 29980115.7 | D14: 30449432.81
A15: 50-Year FSOD Rate | B15: 0.3527798232 | C15: 0.3527855439
F75: Schedule A-5
F76: Page 3 of 3

Sheet X (FINAL)-T20 (hidden)
C1: OUTPUT SHEET
A2: Request this file from Steve Pavich. It is saved here: WTRates/Rates/2025/ALLOC23_FinalCostAlloc_Ratesetting (2025 RATES)_FINAL_signed
A3: Instructions | C3: 1. Want to print this sheet? (This is an output sheet.) Are you sure?
C4: =PrintPrompt -> If you are sure, then click the preview or print button once. --->
A8: Table 20. Capital Costs for Water Service Rates
B9: =" "&+'[3]A (P3)'!B102 -> Central Valley Project, California
C10: as of September 30, 2023
H11: Unit: Dollars
G13: Municipal and | I13: Column Sum
G14: Industrial | H14: Irrigation | I14: Checks | K14: Notes
A17: Storage
A19: W.R. Gianelli Pumping-Generating Plant - Federal Share | G19: 4239289.27 | H19: 23492861.72
A20: Folsom Safety of Dams (SOD) | G20: 5850024.26 | H20: 30443579.3 | K20: New (Fy-22); all SOD put into Storage cost pool
A21: Other Storage Costs | G21: 47820561.12 | H21: 319219025.5
B23: Total - Storage | G23: =SUM(G17:G22) -> 57909874.65 | H23: =SUM(H17:H22) -> 373155466.5 | I23: =G23-('[3]T (P1)'!$T$1010*0.5)-('[3]T (P2)'!$T$1010*0.5)-'[3]T (P3)'!$U$1039 -> 7518870.22 | J23: ***
I24: =H23-('[3]U (P1)'!$T$1010*0.5)-('[3]U (P2)'!$T$1010*0.5)-'[3]U (P3)'!$U$1039 -> 29207875.62 | J24: ***
A26: Conveyance
A28: Contra Costa Water District | G28: 18027321.15 | H28: 108219.23
A29: All Other Water Service Contractors | G29: 27236680.96 | H29: 379537030.6
B31: Total - Conveyance | G31: =SUM(G26:G30) -> 45264002.11 | H31: =SUM(H26:H30) -> 379645249.8 | I31: =G31-('[3]T (P1)'!$U$1010*0.5)-('[3]T (P2)'!$U$1010*0.5)-'[3]T (P3)'!$V$1039 -> 636578.94 | J31: ***
I32: =H31-('[3]U (P1)'!$U$1010*0.5)-('[3]U (P2)'!$U$1010*0.5)-'[3]U (P3)'!$V$1039 -> -1756249.79 | J32: ***
A34: Conveyance Pumping
A36: Corning Canal Pumping Plant | G36: 0 | H36: 2529062.5
A37: Dos Amigos Pumping Plant | G37: 295165.75 | H37: 14350686.98
A38: O'Neill Pumping-Generating Plant | G38: 1823656.54 | H38: 11178506.97
A39: Delta-Mendota Canal Intertie | G39: 0 | H39: 6886799.15
A40: Delta-Mendota Canal Intertie - ARRA | G40: 0 | H40: 17611447.28
A41: WAPA - Tracy Sub 69 Kv to DMC Intertie | G41: 0 | H41: 2464394.39
A42: Tracy Pumping Plant | G42: 4592095.18 | H42: 31998349.61 | K42: includes Tracy Switchyard (P3 only)
B44: Total - Conveyance Pumping | G44: =SUM(G34:G43) -> 6710917.47 | H44: =SUM(H34:H43) -> 87019246.88 | I44: =G44-('[3]T (P1)'!$V$1010*0.5)-('[3]T (P2)'!$V$1010*0.5)-'[3]T (P3)'!$W$1039 -> 296635.115 | J44: ***
I45: =H44-('[3]U (P1)'!$V$1010*0.5)-('[3]U (P2)'!$V$1010*0.5)-'[3]U (P3)'!$W$1039 -> -666367.36 | J45: ***
A47: Direct Pumping
A49: Colusa County Water District Canalside Relift Pumping Plants | G49: 33745.81 | H49: 12599736.42
A50: Colusa Service Area - Cortina | G50: 0 | H50: 141792.21
A51: Colusa Service Area - Davis | G51: 0 | H51: 180305.28
A52: Colusa Service Area - Other | G52: 0 | H52: 1948.63
A53: Corning Water District Canalside Relift Pumping Plants | G53: 0 | H53: 2779835.16
A54: Dunnigan Water District Canalside Relift Pumping Plants | G54: 0 | H54: 1700383.63
A55: Kanawha Water District Canalside Relift Pumping Plants | G55: 1950.25 | H55: 2751873.36
A56: Orland-Artois Water District Canalside Relift Pumping Plants | G56: 0 | H56: 7496789.37
A57: Folsom Dam Pumping Plant | G57: 0 | H57: 0
A58: Panoche Water District Canalside Relift Pumping Plants | G58: 0 | H58: 17103.89038
A59: Placer County Water Agency - Auburn Relift Pumping Plant | G59: 0 | H59: 0
A60: Proberta Water District Canalside Relift Pumping Plants | G60: 0 | H60: 172158.29
A61: San Benito County Water District: | G61: 0 | H61: 0
A62: W.R. Gianelli Pumping-Generating Plant | G62: 1/ | H62: 1/
A63: San Luis Canal Turnouts | G63: 2/ | H63: 2/
A64: San Luis Water District Canalside Relift Pumping Plants | G64: 0 | H64: 8367156.1
A65: Santa Clara Valley Water District: | G65: 0 | H65: 0
A66: W.R. Gianelli Pumping-Generating Plant | G66: 1/ | H66: 1/
A67: Shasta Pumping Plant (City of Shasta Lake) | G67: 314152.02 | H67: 0
A68: Westlands Water District: | G68: 0 | H68: 0
A69: Pleasant Valley Pumping Plant (including Los Banos Substation) | G69: 219897.19 | H69: 9865050.72
A70: Pleasant Valley Water District Canalside Relift Pumping Plants | G70: 27272.23 | H70: 1335194.38
A71: Westlands Water District Canalside Relift Pumping Plants | G71: 738112.39 | H71: 36136523.2
A72: Westside Water District Canalside Relift Pumping Plants | G72: 0 | H72: 7002376.63
A73: Wintu Pumping Plant (Bella Vista Water District) | G73: 500655.97 | H73: 659106.67 | K73: WS shift to M&I
B75: Total - Direct Pumping | G75: =SUM(G47:G74) -> 1835785.86 | H75: =SUM(H47:H74) -> 91207333.94 | I75: =G75-('[3]T (P1)'!$W$1010*0.5)-('[3]T (P2)'!$W$1010*0.5)-'[3]T (P3)'!$X$1039 -> 59725.47 | J75: ***
I76: =H75-('[3]U (P1)'!$W$1010*0.5)-('[3]U (P2)'!$W$1010*0.5)-'[3]U (P3)'!$X$1039 -> -55618.43 | J76: ***
A79: ='[3]V (P3)'!C82 -> San Luis Drain | G79: 0 | H79: 52381551.92 | I79: =G79-('[3]T (P1)'!$M$1010*0.5)-('[3]T (P2)'!$M$1010*0.5)-'[3]T (P3)'!$N$1039 -> 0 | J79: ***
I80: =H79-('[3]U (P1)'!$M$1010*0.5)-('[3]U (P2)'!$M$1010*0.5)-'[3]U (P3)'!$N$1039 -> 0 | J80: ***
A82: Other Costs
A84: Level 2 Refuge Water Supply - PL 102-575, Section 3406(d)(3) | G84: 6090205.24 | H84: 44317986.2
A86: B2 | G86: 159613.12 | H86: 1375612.44 | K86: B2 = new cost category
A88: Central Valley Project Improvement Act - Title 34, PL 102-575 | G88: 0 | H88: 0 | K88: CVPIA not allocated
A89: Tracy Fish Test Facility - Section 3406(b)(4) | G89: 0 | H89: 0 | K89: CVPIA not allocated
A90: Coleman National Fish Hatchery - Section 3406(b)(11) | G90: 0 | H90: 0 | K90: CVPIA not allocated
A91: Land Retirement - Section 3408(h)(1) | G91: 0 | H91: 0 | K91: CVPIA not allocated
A92: Prospect Island - Section 3408(h)(1) | G92: 0 | H92: 0 | K92: CVPIA not allocated
A93: Keswick Fish Trap - Section 3406(b)(11) | G93: 0 | H93: 0 | K93: CVPIA not allocated
A94: Red Bluff Pumping Plant - Section 3406(b)(10) | G94: 0 | H94: 0 | K94: CVPIA not allocated
A95: Shasta Temperature Control Device - Section 3406(b)(6) | G95: 0 | H95: 0 | K95: CVPIA not allocated
A96: Shasta Temperature Control Device | G96: 0 | H96: 0 | K96: CVPIA not allocated
A97: Shasta Temperature Control Device - IDC | G97: 0 | H97: 0 | K97: CVPIA not allocated
A98: Restoration Activities - Section 3406(b)(6) | G98: 0 | H98: 0 | K98: CVPIA not allocated
A100: Subtotal - Central Valley Project Improvement Act - Title 34, PL 102-575 | G100: =SUM(G88:G99) -> 0 | H100: =SUM(H88:H99) -> 0
A102: Trinity River Restoration Project | G102: 31882.83 | H102: 134612.86
A104: Trinity River Restoration Program - PL 98-541, Section 4(b)
A105: Buckhorn Dam | G105: 748380.945 | H105: 5958988.615
A106: ='[3]P (P3)'!$C732 -> Buckhorn Dam - IDC | G106: 646521.24 | H106: 0
A107: Sand Dredging | G107: 30411.725 | H107: 242182.825
A108: Lewiston Fish Protection Facilities | G108: 91697.345 | H108: 730140.74
A109: Other Restoration Program Activities | G109: 38454.01 | H109: 306190.34
A111: Subtotal - Trinity River Restoration Program - PL98-541, Section 4(b) | G111: =SUM(G104:G110) -> 1555465.265 | H111: =SUM(H104:H110) -> 7237502.52
B113: Total - Other Costs | G113: =G84+G100+G102+G111+(G86) -> 7837166.455 | H113: =H84+H100+H102+H111+(H86) -> 53065714.02 | I113: =G113-(('[3]T (P1)'!$X$1010+'[3]T (P1)'!$Y$1010+'[3]T (P1)'!$Z$1010)*0.5)-(('[3]T (P2)'!$X$1010+'[3]T (P2)'!$Y$1010+'[3]T (P2)'!$Z$1010+'[3]T (P2)'!$AA$1010+'[3]T (P2)'!$AB$1010+'[3]T (P2)'!$AC$1010)*0.5)-('[3]T (P3)'!$Y$1039+'[3]T (P3)'!$Z$1039+'[3]T (P3)'!$AA$1039+'[3]T (P3)'!$AB$1039+'[3]T (P3)'!$AC$1039+'[3]T (P3)'!$AD$1039) -> 458385.06 | J113: ***
I114: =H113-(('[3]U (P1)'!$X$1010+'[3]U (P1)'!$Y$1010+'[3]U (P1)'!$Z$1010)*0.5)-(('[3]U (P2)'!$X$1010+'[3]U (P2)'!$Y$1010+'[3]U (P2)'!$Z$1010+'[3]U (P2)'!$AA$1010+'[3]U (P2)'!$AB$1010+'[3]U (P2)'!$AC$1010)*0.5)-('[3]U (P3)'!$Y$1039+'[3]U (P3)'!$Z$1039+'[3]U (P3)'!$AA$1039+'[3]U (P3)'!$AB$1039+'[3]U (P3)'!$AC$1039+'[3]U (P3)'!$AD$1039) -> 2337654.53 | J114: ***
C115: Total - Water Supply - Capital Costs | G115: =G23+G31+G44+G75+G79+G113 -> 119557746.5 | H115: =H23+H31+H44+H75+H79+H113 -> 1036474563
A118: Project Use Power - Capital Costs
A119: Bureau of Reclamation | G119: 17249128.85 | H119: 98103633.71
A120: Western Area Power Administration | G120: 17042174.42 | H120: 82861817.08
C122: Total - Project Use Power - Capital Costs | G122: =SUM(G118:G120) -> 34291303.27 | H122: =SUM(H118:H121) -> 180965450.8 | I122: =G122-('[3]T (P1)'!AA1010*0.5)-('[3]T (P2)'!AD1010*0.5)-'[3]T (P3)'!AE1039 -> 662032.095 | J122: ***
I123: =H122-('[3]U (P1)'!AA1010*0.5)-('[3]U (P2)'!AD1010*0.5)-'[3]U (P3)'!AE1039 -> -258642.895 | J123: ***
B125: Total - Costs to be Repaid - Water Service Contracts - Central Valley Project | G125: =G115+G122 -> 153849049.8 | H125: =H115+H122 -> 1217440014 | I125: =G125-(('[3]T (P1)'!S1010+'[3]T (P1)'!M1010)*0.5)-(('[3]T (P2)'!S1010+'[3]T (P2)'!M1010)*0.5)-'[3]T (P3)'!T1039-'[3]T (P3)'!N1039 -> 9632226.9 | J125: ***
I126: =H125-(('[3]U (P1)'!S1010+'[3]U (P1)'!M1010)*0.5)-(('[3]U (P2)'!S1010+'[3]U (P2)'!M1010)*0.5)-'[3]U (P3)'!T1039-'[3]U (P3)'!N1039 -> 28808651.68 | J126: ***
A129: 1/ Amount will be calculated in footnote 1 of Schedule A-5 of water rate book.
A130: 2/ Included as Panoche and San Luis Water Districts Canalside Relift Pumping Plants which are calculated
A131: from Historical and Projected KWH. Page 1 of 3, Schedule A-5 of irrigation water rate book.
A135: RECONCILIATION
A137: Allocated Costs - Plant In Service Investment - as of September 30, 2019
B138: Water Supply | G138: 389131315.5 | H138: 1398004347
B139: Project Use Power | G139: 35128947.22 | H139: 188184614.8
B140: Restoration Fund Offset (Prepayment) | G140: 0 | H140: 0 | K140: CVPIA not allocated
B142: Total Allocated Costs | G142: =G138+G139+G140 -> 424260262.7 | H142: =H138+H139+H140 -> 1586188962
A145: Amounts to be Repaid - Water Service Contracts
B146: Storage | G146: =G23 -> 57909874.65 | H146: =H23 -> 373155466.5
B147: Conveyance | G147: =G31 -> 45264002.11 | H147: =H31 -> 379645249.8
B148: Conveyance Pumping | G148: =G44 -> 6710917.47 | H148: =H44 -> 87019246.88
B149: Direct Pumping | G149: =G75 -> 1835785.86 | H149: =H75 -> 91207333.94
B150: =A82 -> Other Costs | G150: =G113 -> 7837166.455 | H150: =H113 -> 53065714.02
B151: Project Use Power | G151: =G122 -> 34291303.27 | H151: =H122 -> 180965450.8
B152: ='[3]V (P3)'!C82 -> San Luis Drain | G152: =G79 -> 0 | H152: =H79 -> 52381551.92
B153: Total | G153: =SUM(G146:G152) -> 153849049.8 | H153: =SUM(H146:H152) -> 1217440014
B156: Total - Water Service Contracts | G156: =G153 -> 153849049.8 | H156: =H153 -> 1217440014 | I156: =G125-G156 -> 0 | J156: ***
I157: =H125-H156 -> 0 | J157: ***
A159: Amounts to be Repaid - Repayment Contracts
B160: Distribution Systems | G160: 6681644.77 | H160: 288620484.6
B161: XM Activities (Tracy Pumping Plant) | G161: 2136921.19 | H161: 11860651.5
B162: San Felipe Out of Basin | G162: 261592647 | H162: 68267811.65
B163: Drainage Systems | G163: 0 | H163: 0
B165: Total - Repayment Contracts | G165: =SUM(G160:G164) -> 270411213 | H165: =SUM(H160:H164) -> 368748947.7
A168: Restoration Fund Offsets (Prepayment) | G168: 0 | H168: 0 | K168: CVPIA not allocated
C171: Variance | G171: =G142-(+G156+G165+G168) -> -0.03499996662 | H171: =H142-(+H156+H165+H168) -> -0.05000019073 | J171: *** | K171: check
A175: xxx
A176: ='[3]A (P3)'!$B$99 -> 2022-06-29T11:54:35.230
A177: ='[3]A (P3)'!$B$100 -> 44741.49624
